Workbook

Sheet PUNTO DE EQUILIBRIO
B1: Punto de equilibrio - gráfico
B2: MOS Expert - CPC Martín Cruz - +51 998401784
D6: Precio Unitario | E6: =lista01.1 -> 221 | H6: Cantidad | I6: Total Ingresos | J6: Total Costos | K6: Costo Fijo | L6: P.Equilibrio | M6: Ganancia
D7: Cantidad Venta | E7: 1,000 | H7: 0 | I7: =H7*$E$6 -> 0 | J7: =H7*$E$8+$E$9 -> 34,000 | K7: =$E$9 -> 34,000
D8: Costo Unitario | E8: 70 | H8: =E7 -> 1000 | I8: =H8*$E$6 -> 221,000 | J8: =H8*$E$8+$E$9 -> 104,000 | K8: =$E$9 -> 34,000
D9: Costos fijos | E9: 34,000 | H9: =$E$11 -> 225 | L9: 0
H10: =$E$11 -> 225 | L10: =H10*E8+E9 -> 49,762
D11: Punto de Equilibrio | E11: =E9/(E6-E8) -> 225 | H11: =$H$8*0.8 -> 800 | M11: =H11*E8+E9 -> 90,000
H12: =$H$8*0.8 -> 800 | M12: =H12*E6 -> 176,800

Sheet DO_EQUILIBRIO (hidden)
C4: Precio Unitario | D4: =RANDBETWEEN(150,300) -> 221 | F4: Cantidad | G4: Total Ingresos | H4: Total Costos | I4: Pérdida | J4: Ganancia | K4: P.Equilibrio
C5: Cantidad Venta | D5: 1,000 | F5: =D9*0.2 -> 45 | G5: =F5*$D$4 -> 9,952 | H5: =F5*$D$6+$D$7 -> 37,152
C6: Costo Unitario | D6: =INT(D4*RANDBETWEEN(30,40)%) -> 70 | F6: =D9*1.8 -> 405 | G6: =F6*$D$4 -> 89,571 | H6: =F6*$D$6+$D$7 -> 62,371
C7: Gastos fijos | D7: =RANDBETWEEN(30,40)*1000 -> 34,000 | F7: =$F$5*2 -> 90 | I7: =F7*D4 -> 19,905
D8: ="" ->  | F8: =$F$5*2 -> 90 | I8: =I7*1.3 -> 25,876
C9: Punto de Equilibrio | D9: =D7/(D4-D6) -> 225 | F9: =F7 -> 90 | I9: =F9*D6+D7 -> 40,305
F10: =$F$6*0.9 -> 365 | J10: =F10*D6+D7 -> 59,534
F11: =$F$6*0.9 -> 365 | J11: =J12*0.9 -> 72,552
F12: =$F$6*0.9 -> 365 | J12: =F12*D4 -> 80,614
F13: =D9 -> 225 | K13: =F13*D4 -> 49,762
